lending/lending_fUSD_20250501
["ID","MTS","AMOUNT","RATE_DAILY","PERIOD"]
[359564029,1746125458676,-176.160833,0.0003589,7]
[359564030,1746125458687,-450.0,0.0003589,11]
[359564031,1746125458696,-450.0,0.0003589,11]
[359564032,1746125458705,-281.11419634,0.0003589,11]
[359564033,1746125458715,-1560.94,0.0003589,11]
[359564034,1746125458724,-887.27,0.0003589,11]
[359564035,1746125458733,-450.0,0.0003589,11]
[359564036,1746125458743,-450.0,0.0003589,11]
[359564037,1746125458753,-1117.31,0.0003589,11]
[359564038,1746125458762,-450.0,0.0003589,11]
[359564039,1746125458772,-176.160833,0.0003589,7]
[359564040,1746125458781,-450.0,0.0003589,11]
[359564041,1746125458790,-450.0,0.0003589,11]
[359564042,1746125458799,-176.160833,0.0003589,7]
[359564043,1746125458809,-159.038732,0.0003589,11]
[359564044,1746125458818,-578.54,0.0003589,11]
[359564045,1746125458828,-450.0,0.0003589,11]
[359564046,1746125458837,-450.0,0.0003589,11]
[359564047,1746125458847,-1075.67,0.0003589,11]
[359564048,1746125458857,-993.97,0.0003589,11]
[359564049,1746125458867,-575.45,0.0003589,11]
[359564050,1746125458877,-450.0,0.0003589,11]
[359564051,1746125458888,-1326.69,0.0003589,11]
[359564052,1746125458898,-484.6,0.0003589,11]
[359564053,1746125458907,-596.2,0.0003589,11]
[359564054,1746125458917,-549.07,0.0003589,11]
[359564055,1746125458926,-331.9,0.0003589,11]
[359564056,1746125458936,-563.47,0.0003589,11]
[359564057,1746125458945,-450.0,0.0003589,11]
[359564058,1746125458954,-503.57,0.0003589,11]
[359564059,1746125458964,-450.0,0.0003589,11]
[359564060,1746125458975,-591.92,0.0003589,11]
[359564061,1746125458985,-450.0,0.0003589,11]
[359564062,1746125458995,-450.0,0.0003589,11]
[359564063,1746125459004,-450.0,0.0003589,11]
[359564064,1746125459015,-894.99,0.0003589,11]
[359564065,1746125459024,-2136.31,0.0003589,8]
[359564066,1746125459034,-645.63,0.0003589,11]
[359564067,1746125459043,-450.0,0.0003589,11]
[359564068,1746125459052,-450.0,0.0003589,11]
[359564069,1746125459062,-1645.26,0.0003589,11]
[359564070,1746125459071,-499.36,0.0003589,11]
[359564071,1746125459081,-450.0,0.0003589,11]
[359564072,1746125459090,-2089.82,0.0003589,11]
[359564073,1746125459099,-450.0,0.0003589,11]
[359564074,1746125459109,-1431.97,0.0003589,11]
[359564075,1746125459118,-450.0,0.0003589,11]
[359564076,1746125459127,-656.25,0.0003589,11]
[359564077,1746125459136,-450.0,0.0003589,11]
[359564078,1746125459146,-863.89,0.0003589,11]
[359564079,1746125459155,-652.66,0.0003589,11]
[359564080,1746125459165,-754.65,0.0003589,11]
[359564081,1746125459175,-450.0,0.0003589,11]
[359564082,1746125459185,-450.0,0.0003589,11]
[359564083,1746125459195,-450.0,0.0003589,11]
[359564084,1746125459207,-252.28458182,0.0003589,11]
[359564085,1746125459217,-1103.4,0.0003589,11]
[359564086,1746125459227,-896.59,0.0003589,11]
[359564087,1746125459236,-9755.04,0.0003589,11]
[359564088,1746125459246,-450.0,0.0003589,11]
[359564089,1746125459255,-450.0,0.0003589,11]
[359564090,1746125459264,-1032.71,0.0003589,11]
[359564091,1746125459273,-367.9457591,0.0003589,11]
[359564092,1746125459282,-1150.52,0.0003589,120]
[359564093,1746125459292,-450.0,0.0003589,11]
[359564094,1746125459301,-1363.71,0.0003589,11]
[359564095,1746125459311,-180.73552609,0.0003589,11]
[359564096,1746125459320,-300.64972138,0.0003589,11]
[359564097,1746125459330,-450.0,0.0003589,11]
[359564098,1746125459340,-450.0,0.0003589,11]
[359564099,1746125459349,-450.0,0.0003589,11]
[359564100,1746125459358,-1047.96,0.0003589,11]
[359564101,1746125459367,-311.87078696,0.0003589,11]
[359564102,1746125459377,-778.78,0.0003589,11]
[359564103,1746125459387,-450.0,0.0003589,11]
[359564104,1746125459396,-450.0,0.0003589,11]
[359564105,1746125459406,-450.0,0.0003589,11]
[359564106,1746125459415,-450.0,0.0003589,11]
[359564107,1746125459425,-450.0,0.0003589,11]
[359564108,1746125459433,-703.7,0.0003589,11]
[359564109,1746125459443,-450.0,0.0003589,11]
[359564110,1746125459453,-1541.59,0.0003589,11]
[359564111,1746125459462,-1045.87,0.0003589,11]
[359564112,1746125459472,-450.0,0.0003589,11]
[359564113,1746125459482,-647.29,0.0003589,11]
[359564114,1746125459492,-450.0,0.0003589,11]
[359564115,1746125459502,-450.0,0.0003589,11]
[359564116,1746125459511,-450.0,0.0003589,11]
[359564117,1746125459521,-1118.18,0.0003589,11]
[359564118,1746125459531,-450.0,0.0003589,11]
[359564119,1746125459540,-450.0,0.0003589,11]
[359564120,1746125459549,-450.0,0.0003589,11]
[359564121,1746125459558,-972.39,0.0003589,11]
[359564122,1746125459567,-598.6,0.0003589,11]
[359564123,1746125459576,-871.54,0.0003589,11]
[359564124,1746125459585,-2172.07,0.0003589,11]
[359564125,1746125459595,-450.0,0.0003589,11]
[359564126,1746125459604,-450.0,0.0003589,11]
[359564127,1746125459613,-483.91,0.0003589,11]
[359564128,1746125459622,-1164.68,0.0003589,11]
[359564129,1746125459631,-605.5,0.0003589,11]
[359564130,1746125459641,-450.0,0.0003589,11]
[359564131,1746125459654,-1122.64,0.0003589,11]
[359564132,1746125459663,-2502.34,0.0003589,11]
[359564133,1746125459672,-1095.24,0.0003589,11]
[359564134,1746125459682,-450.0,0.0003589,7]
[359564135,1746125459693,-832.38,0.0003589,11]
[359564136,1746125459702,-450.0,0.0003589,11]
[359564137,1746125459711,-1189.48,0.0003589,11]
[359564138,1746125459720,-1761.77,0.0003589,11]
[359564139,1746125459731,-450.0,0.0003589,11]
[359564140,1746125459740,-450.0,0.0003589,11]
[359564141,1746125459749,-450.0,0.0003589,11]
[359564142,1746125459758,-529.06,0.0003589,11]
[359564143,1746125459767,-450.0,0.0003589,11]
[359564144,1746125459777,-1110.23,0.0003589,11]
[359564145,1746125459786,-450.0,0.0003589,11]
[359564146,1746125459795,-450.0,0.0003589,11]
[359564147,1746125459804,-497.5,0.0003589,11]
[359564148,1746125459814,-450.0,0.0003589,11]
[359564149,1746125459824,-1318.71,0.0003589,11]
[359564150,1746125459833,-522.94,0.0003589,11]
[359564151,1746125459842,-1038.36,0.0003589,11]
[359564152,1746125459852,-151.0,0.0003589,7]
[359564153,1746125459862,-782.48,0.0003589,11]
[359564154,1746125459871,-151.0,0.0003589,7]
[359564155,1746125459881,-450.0,0.0003589,11]
[359564156,1746125459891,-1375.85,0.0003589,11]
[359564157,1746125459900,-450.0,0.0003589,11]
[359564158,1746125459910,-450.0,0.0003589,11]
[359564159,1746125459920,-468.72,0.0003589,11]
[359564160,1746125459930,-151.0,0.0003589,7]
[359564161,1746125459940,-450.0,0.0003589,11]
[359564162,1746125459949,-222.15891,0.0003589,7]
[359564163,1746125459960,-479.82,0.0003589,11]
[359564164,1746125459970,-959.69,0.0003589,11]
[359564165,1746125459979,-450.0,0.0003589,11]
[359564166,1746125459989,-450.0,0.0003589,11]
[359564167,1746125459998,-740.64,0.0003589,11]
[359564168,1746125460008,-16881.82,0.0003589,11]
[359564169,1746125460018,-450.0,0.0003589,11]
[359564170,1746125460037,-151.0,0.0003589,7]
[359564171,1746125460050,-151.0,0.0003589,7]
[359564172,1746125460060,-2913.59,0.0003589,11]
[359564173,1746125460070,-450.0,0.0003589,11]
[359564174,1746125460080,-450.0,0.0003589,11]
[359564175,1746125460090,-450.0,0.0003589,11]
[359564176,1746125460100,-6631.16,0.0003589,11]
[359564177,1746125460111,-2202.67,0.0003589,11]
[359564178,1746125460121,-614.39,0.0003589,11]
[359564179,1746125460131,-450.0,0.0003589,11]
[359564180,1746125460140,-675.33,0.0003589,11]
[359564181,1746125460150,-2272.79,0.0003589,11]
[359564182,1746125460160,-628.52,0.0003589,11]
[359564183,1746125460169,-450.0,0.0003589,11]
[359564184,1746125460179,-450.0,0.0003589,11]
[359564185,1746125460188,-2370.49,0.0003589,11]
[359564186,1746125460197,-450.0,0.0003589,11]
[359564187,1746125460208,-450.0,0.0003589,11]
[359564188,1746125460220,-450.0,0.0003589,11]
[359564189,1746125460230,-928.83,0.0003589,11]
[359564190,1746125460240,-1326.68,0.0003589,11]
[359564191,1746125460250,-486.27,0.0003589,11]
[359564192,1746125460260,-1138.77,0.0003589,11]
[359564193,1746125460270,-699.88,0.0003589,11]
[359564194,1746125460279,-925.15,0.0003589,11]
[359564195,1746125460289,-450.0,0.0003589,11]
[359564196,1746125460299,-450.0,0.0003589,11]
[359564197,1746125460309,-450.0,0.0003589,7]
[359564198,1746125460319,-450.0,0.0003589,11]
[359564199,1746125460329,-151.0,0.0003589,7]
[359564200,1746125460338,-1903.06,0.0003589,11]
[359564201,1746125460348,-450.0,0.0003589,11]
[359564202,1746125460357,-151.0,0.0003589,7]
[359564203,1746125460367,-1228.77,0.0003589,11]
[359564204,1746125460378,-790.93,0.0003589,11]
[359564205,1746125460387,-3386.69,0.0003589,11]
[359564206,1746125460397,-151.0,0.0003589,7]
[359564207,1746125460407,-450.0,0.0003589,11]
[359564208,1746125460417,-169.651221,0.0003589,7]
[359564209,1746125460426,-1353.1,0.0003589,11]
[359564210,1746125460436,-450.0,0.0003589,11]
[359564211,1746125460446,-879.24,0.0003589,11]
[359564212,1746125460455,-715.8,0.0003589,11]
[359564213,1746125460465,-973.1,0.0003589,11]
[359564214,1746125460474,-556.8,0.0003589,11]
[359564215,1746125460484,-11110.03,0.0003589,11]
[359564216,1746125460494,-1134.08,0.0003589,11]
[359564217,1746125460507,-450.0,0.0003589,11]
[359564218,1746125460516,-450.0,0.0003589,11]
[359564219,1746125460526,-450.0,0.0003589,11]
[359564220,1746125460536,-450.0,0.0003589,11]
[359564221,1746125460546,-450.0,0.0003589,11]
[359564222,1746125460556,-847.76,0.0003589,11]
[359564223,1746125460565,-1237.78,0.0003589,11]
[359564224,1746125460575,-3724.28,0.0003589,11]
[359564225,1746125460584,-450.0,0.0003589,11]
[359564226,1746125460593,-450.0,0.0003589,11]
[359564227,1746125460602,-1223.04,0.0003589,11]
[359564228,1746125460611,-450.0,0.0003589,11]
[359564229,1746125460621,-470.24,0.0003589,11]
[359564230,1746125460631,-450.0,0.0003589,11]
[359564231,1746125460640,-450.0,0.0003589,11]
[359564232,1746125460653,-706.06,0.0003589,11]
[359564233,1746125460663,-623.29,0.0003589,11]
[359564234,1746125460672,-878.69,0.0003589,11]
[359564235,1746125460681,-1274.63,0.0003589,11]
[359564236,1746125460692,-1543.3,0.0003589,11]
[359564237,1746125460701,-607.06,0.0003589,11]
[359564238,1746125460710,-450.0,0.0003589,11]
[359564239,1746125460720,-450.0,0.0003589,11]
[359564240,1746125460730,-12461.77,0.0003589,11]
[359564241,1746125460741,-672.97,0.0003589,11]
[359564242,1746125460751,-1363.05,0.0003589,11]
[359564243,1746125460761,-750.68,0.0003589,11]
[359564244,1746125460770,-450.0,0.0003589,11]
[359564245,1746125460779,-450.0,0.0003589,11]
[359564246,1746125460788,-982.2,0.0003589,11]
[359564247,1746125460797,-631.52,0.0003589,11]
[359564248,1746125460807,-1367.1,0.0003589,11]
[359564249,1746125460816,-450.0,0.0003589,11]
[359564250,1746125460825,-1939.03,0.0003589,11]
[359564251,1746125460835,-1000.0,0.0003589,60]
[359564252,1746125461052,-450.0,0.0003589,11]
[359564253,1746125461061,-681.02,0.0003589,11]
[359564254,1746125461070,-450.0,0.0003589,11]
[359564255,1746125461080,-11812.4,0.0003589,11]
[359564256,1746125461089,-631.64,0.0003589,11]
[359564257,1746125461099,-450.0,0.0003589,11]
[359564258,1746125461108,-1524.63,0.0003589,11]
[359564259,1746125461118,-1738.86,0.0003589,11]
[359564260,1746125461128,-450.0,0.0003589,11]
[359564261,1746125461137,-346.68988639,0.0003589,11]
[359564262,1746125461147,-450.0,0.0003589,11]
[359564263,1746125461156,-450.0,0.0003589,11]
[359564264,1746125461165,-450.0,0.0003589,11]
[359564265,1746125461174,-450.0,0.0003589,3]
[359564266,1746125461184,-587.43,0.0003589,11]
[359564267,1746125461193,-2000.0,0.0003589,11]
[359564268,1746125461203,-450.0,0.0003589,11]
[359564269,1746125461212,-150.55639888,0.0003589,11]
[359564270,1746125461222,-1607.08,0.0003589,11]
[359564271,1746125461231,-765.65,0.0003589,11]
[359564272,1746125461241,-450.0,0.0003589,11]
[359564273,1746125461251,-450.0,0.0003589,11]
[359564274,1746125461490,-561.33,0.0003589,11]
[359564275,1746125461500,-450.0,0.0003589,11]
[359564276,1746125461509,-566.77,0.0003589,11]
[359564277,1746125461519,-1077.28,0.0003589,11]
[359564278,1746125461528,-5330.09,0.0003589,11]
[359564279,1746125461537,-1057.13,0.0003589,11]
[359564280,1746125461546,-450.0,0.0003589,11]
[359564281,1746125461557,-884.63,0.0003589,11]
[359564282,1746125461567,-450.0,0.0003589,11]
[359564283,1746125461576,-450.0,0.0003589,11]
[359564284,1746125461586,-1252.14,0.0003589,11]
[359564285,1746125461595,-450.0,0.0003589,11]
[359564286,1746125461605,-961.58,0.0003589,11]
[359564287,1746125461614,-705.04,0.0003589,11]
[359564288,1746125461623,-450.0,0.0003589,11]
[359564289,1746125461633,-450.0,0.0003589,11]
[359564290,1746125461643,-450.0,0.0003589,11]
[359564291,1746125461654,-450.0,0.0003589,2]
[359564292,1746125461663,-450.0,0.0003589,11]
[359564293,1746125461673,-450.0,0.0003589,11]
[359564294,1746125461683,-562.88,0.0003589,11]
[359564295,1746125461694,-694.01,0.0003589,11]
[359564296,1746125461704,-1334.29,0.0003589,11]
[359564297,1746125461713,-500.0,0.0003589,120]
[359564298,1746125461724,-450.0,0.0003589,11]
[359564299,1746125461734,-577.49,0.0003589,11]
[359564300,1746125461743,-474.11,0.0003589,11]
[359564301,1746125461754,-845.09,0.0003589,11]
[359564302,1746125461763,-450.0,0.0003589,11]
[359564303,1746125461772,-806.67,0.0003589,11]
[359564304,1746125461783,-525.32,0.0003589,11]
[359564305,1746125461792,-468.82,0.0003589,11]
[359564306,1746125461802,-450.0,0.0003589,11]
[359564307,1746125461812,-450.0,0.0003589,11]
[359564308,1746125461822,-472.74,0.0003589,11]
[359564309,1746125461832,-450.0,0.0003589,11]
[359564310,1746125461842,-459.43,0.0003589,11]
[359564311,1746125461852,-2421.09,0.0003589,11]
[359564312,1746125461861,-450.0,0.0003589,11]
[359564313,1746125461870,-450.0,0.0003589,11]
[359564314,1746125461880,-4004.72,0.0003589,11]
[359564315,1746125461889,-1243.28,0.0003589,11]
[359564316,1746125461898,-450.0,0.0003589,11]
[359564317,1746125461909,-1112.48,0.0003589,11]
[359564318,1746125461918,-1636.56,0.0003589,11]
[359564319,1746125461928,-11877.27,0.0003589,11]
[359564320,1746125461937,-450.0,0.0003589,11]
[359564321,1746125461947,-450.0,0.0003589,11]
[359564322,1746125461957,-450.0,0.0003589,11]
[359564323,1746125461967,-450.0,0.0003589,11]
[359564324,1746125461976,-450.0,0.0003589,11]
[359564325,1746125461986,-450.0,0.0003589,11]
[359564326,1746125461995,-905.34,0.0003589,11]
[359564327,1746125462006,-450.0,0.0003589,11]
[359564328,1746125462015,-564.69646269,0.0003589,11]
[359564329,1746125462024,-163839.56,0.0003589,11]
[359564330,1746125462034,-790.09,0.0003589,11]
[359564331,1746125462044,-450.0,0.0003589,11]
[359564332,1746125462053,-1867.52,0.0003589,11]
[359564333,1746125462063,-875.08,0.0003589,11]
[359564334,1746125462073,-450.0,0.0003589,11]
[359564335,1746125462082,-390.02714355,0.0003589,11]
[359564336,1746125462091,-213.33517367,0.0003589,11]
[359564337,1746125462101,-450.0,0.0003589,11]
[359564338,1746125462110,-450.0,0.0003589,11]
[359564339,1746125462121,-517.17,0.0003589,11]
[359564340,1746125462130,-459.68,0.0003589,11]
[359564341,1746125462139,-450.0,0.0003589,11]
[359564342,1746125462149,-450.0,0.0003589,11]
[359564343,1746125462159,-450.0,0.0003589,11]
[359564344,1746125462168,-450.0,0.0003589,11]
[359564345,1746125462177,-450.0,0.0003589,11]
[359564346,1746125462187,-450.0,0.0003589,11]
[359564347,1746125462196,-463.3,0.0003589,11]
[359564348,1746125462206,-1326.36,0.0003589,11]
[359564349,1746125462216,-450.0,0.0003589,11]
[359564350,1746125462225,-937.07,0.0003589,11]
[359564351,1746125462235,-450.0,0.0003589,11]
[359564352,1746125462245,-3404.96,0.0003589,11]
[359564353,1746125462255,-450.0,0.0003589,11]
[359564354,1746125462264,-450.0,0.0003589,11]
[359564355,1746125462274,-300.0,0.0003589,11]
[359564356,1746125462283,-572.01,0.0003589,11]
[359564357,1746125462294,-505.94,0.0003589,11]
[359564358,1746125462303,-13760.97,0.0003589,2]
[359564359,1746125462314,-10291.19,0.0003589,11]
[359564360,1746125462323,-450.0,0.0003589,11]
[359564361,1746125462333,-1132.04,0.0003589,11]
[359564362,1746125462342,-450.0,0.0003589,11]
[359564363,1746125462352,-761.13,0.0003589,11]
[359564364,1746125462362,-450.0,0.0003589,11]
[359564365,1746125462371,-1264.03,0.0003589,11]
[359564366,1746125462381,-452.82,0.0003589,11]
[359564367,1746125462391,-861.06,0.0003589,11]
[359564368,1746125462400,-2179.89,0.0003589,11]
[359564369,1746125462409,-584.46,0.0003589,11]
[359564370,1746125462418,-572.34,0.0003589,11]
[359564371,1746125462427,-450.0,0.0003589,11]
[359564372,1746125462436,-5766.87,0.0003589,11]
[359564373,1746125462446,-2197.55,0.0003589,11]
[359564374,1746125462455,-500.0,0.0003589,11]
[359564375,1746125462464,-360.85864472,0.0003589,11]
[359564376,1746125462473,-450.0,0.0003589,11]
[359564377,1746125462487,-1030.72,0.0003589,11]
[359564378,1746125462496,-3910.87,0.0003589,11]
[359564379,1746125462506,-513.37,0.0003589,11]
[359564380,1746125462515,-450.0,0.0003589,11]
[359564381,1746125462525,-450.0,0.0003589,11]
[359564382,1746125462534,-450.0,0.0003589,11]
[359564383,1746125462544,-539.48,0.0003589,11]
[359564384,1746125462554,-1270.63,0.0003589,11]
[359564385,1746125462563,-838.18,0.0003589,11]
[359564386,1746125462573,-619.24,0.0003589,11]
[359564387,1746125462582,-450.0,0.0003589,11]
[359564388,1746125462591,-450.0,0.0003589,11]
[359564389,1746125462601,-450.0,0.0003589,11]
[359564390,1746125462610,-3632.63,0.0003589,11]
[359564391,1746125462620,-1292.16,0.0003589,11]
[359564392,1746125462629,-1123.83,0.0003589,11]
[359564393,1746125462639,-178.69294257,0.0003589,11]
[359564394,1746125462654,-892.21,0.0003589,11]
[359564395,1746125462664,-568.85,0.0003589,11]
[359564396,1746125462673,-450.0,0.0003589,11]
[359564397,1746125462684,-1472.3,0.0003589,11]
[359564398,1746125462694,-5023.95,0.0003589,11]
[359564399,1746125462705,-450.0,0.0003589,11]
[359564400,1746125462715,-509.11951591,0.0003589,11]
[359564401,1746125462725,-450.0,0.0003589,11]
[359564402,1746125462735,-450.0,0.0003589,11]
[359564403,1746125462745,-450.0,0.0003589,11]
[359564404,1746125462755,-704.81,0.0003589,11]
[359564405,1746125462765,-450.0,0.0003589,11]
[359564406,1746125462775,-1000.0,0.0003589,11]
[359564407,1746125462785,-450.0,0.0003589,11]
[359564408,1746125462794,-450.0,0.0003589,11]
[359564409,1746125462804,-681.22,0.0003589,11]
[359564410,1746125462814,-3970.47,0.0003589,11]
[359564411,1746125462823,-450.0,0.0003589,10]
[359564412,1746125462833,-1436.2,0.0003589,11]
[359564413,1746125462843,-450.0,0.0003589,11]
[359564414,1746125462854,-450.0,0.0003589,11]
[359564415,1746125462864,-883.76,0.0003589,11]
[359564416,1746125462874,-450.0,0.0003589,11]
[359564417,1746125462883,-1870.73,0.0003589,11]
[359564418,1746125462893,-450.0,0.0003589,11]
[359564419,1746125462903,-450.0,0.0003589,11]
[359564420,1746125462913,-450.0,0.0003589,11]
[359564421,1746125462922,-1467.23,0.0003589,11]
[359564422,1746125462932,-450.0,0.0003589,11]
[359564423,1746125462942,-450.0,0.0003589,11]
[359564424,1746125462951,-450.0,0.0003589,2]
[359564425,1746125462961,-450.0,0.0003589,11]
[359564426,1746125462971,-3891.6,0.0003589,11]
[359564427,1746125462980,-450.0,0.0003589,11]
[359564428,1746125462990,-1531.83,0.0003589,11]
[359564429,1746125463000,-450.0,0.0003589,11]
[359564430,1746125463011,-707.16,0.0003589,11]
[359564431,1746125463021,-788.46,0.0003589,11]
[359564432,1746125463031,-450.0,0.0003589,11]
[359564433,1746125463041,-450.0,0.0003589,11]
[359564434,1746125463051,-450.0,0.0003589,11]
[359564435,1746125463061,-302.78592141,0.0003589,11]
[359564436,1746125463073,-450.0,0.0003589,11]
[359564437,1746125463082,-587.65,0.0003589,11]
[359564438,1746125463093,-833.01,0.0003589,11]
[359564439,1746125463103,-808.63,0.0003589,11]
[359564440,1746125463113,-1096.58,0.0003589,11]
[359564441,1746125463122,-513.46,0.0003589,11]
[359564442,1746125463132,-450.0,0.0003589,11]
[359564443,1746125463142,-450.0,0.0003589,11]
[359564444,1746125463152,-1000.0,0.0003589,2]
[359564445,1746125463161,-450.0,0.0003589,11]
[359564446,1746125463171,-574.17,0.0003589,11]
[359564447,1746125463182,-450.0,0.0003589,11]
[359564448,1746125463192,-1201.61,0.0003589,11]
[359564449,1746125463202,-450.0,0.0003589,11]
[359564450,1746125463212,-450.0,0.0003589,11]
[359564451,1746125463223,-1559.6,0.0003589,11]
[359564452,1746125463233,-450.0,0.0003589,11]
[359564453,1746125463243,-804.29,0.0003589,11]
[359564454,1746125463254,-450.0,0.0003589,11]
[359564455,1746125463264,-450.0,0.0003589,11]
[359564456,1746125463273,-450.0,0.0003589,11]
[359564457,1746125463284,-450.0,0.0003589,11]
[359564458,1746125463294,-895.16,0.0003589,11]
[359564459,1746125463303,-450.0,0.0003589,11]
[359564460,1746125463313,-450.0,0.0003589,11]
[359564461,1746125463323,-506.06,0.0003589,11]
[359564462,1746125463333,-450.0,0.0003589,11]
[359564463,1746125463344,-450.0,0.0003589,11]
[359564464,1746125463354,-450.0,0.0003589,11]
[359564465,1746125463364,-450.0,0.0003589,11]
[359564466,1746125463374,-3804.3,0.0003589,11]
[359564467,1746125463384,-1802.41,0.0003589,11]
[359564468,1746125463394,-1443.57,0.0003589,11]
[359564469,1746125463405,-450.0,0.0003589,11]
[359564470,1746125463416,-450.0,0.0003589,11]
[359564471,1746125463428,-450.0,0.0003589,11]
[359564472,1746125463438,-253.76985131,0.0003589,11]
[359564473,1746125463448,-305.09,0.00035892,2]
[359564474,1746125463459,-441.13,0.00035892,2]
[359564475,1746125463470,-150.0,0.00035892,2]
[359564476,1746125463480,-150.0,0.00035892,2]
[359564477,1746125463490,-150.0,0.00035892,2]
[359564478,1746125463502,-1153.32,0.00035892,2]
[359564479,1746125463512,-1153.32,0.00035892,2]
[359564480,1746125463523,-150.0,0.00035892,2]
[359564481,1746125463533,-1153.32,0.00035892,2]
[359564482,1746125463543,-341.28,0.00035892,2]
[359564483,1746125463553,-176.16,0.00035906,2]
[359564484,1746125463562,-177.52336652,0.0003592,2]
[359564485,1746125463573,-200.0,0.00036,120]
[359564486,1746125463582,-1781.08472012,0.00036,60]
[359564487,1746125463592,-444.29999996,0.00036,2]
[359564488,1746125463601,-1992.0,0.00036,60]
[359564489,1746125463611,-167.60596591,0.00036018,2]
[359564490,1746125463620,-166.79723272,0.00036057,2]
[359564491,1746125463630,-299.84456601,0.00036064,2]
[359564492,1746125463640,-28228.34039251,0.00036064,2]
[359564493,1746125463655,-4944.61978277,0.00036064,2]
[359564494,1746125463664,-974.37565206,0.00036064,2]
[359564495,1746125463674,-1505.76431697,0.00036064,2]
[359564496,1746125463684,-150.0,0.00036108,2]
[359564497,1746125463694,-500.0,0.00036163,10]
[359564498,1746125463704,-500.0,0.00036163,10]
[359564499,1746125463714,-216195.75,0.00036164,7]
[359564500,1746125463724,-992.28,0.00036164,2]
[359564501,1746125463734,-1527.18,0.00036164,11]
[359564502,1746125463745,-493.89,0.00036164,11]
[359564503,1746125463756,-452.01,0.00036164,11]
[359564504,1746125463768,-663.7,0.00036164,11]
[359564505,1746125463777,-800.98,0.00036164,11]
[359564506,1746125463787,-450.0,0.00036164,11]
[359564507,1746125463797,-450.0,0.00036164,2]
[359564508,1746125463807,-450.0,0.00036164,11]
[359564509,1746125463817,-238.23330739,0.00036164,11]
[359564510,1746125463827,-450.0,0.00036164,11]
[359564511,1746125463837,-450.0,0.00036164,11]
[359564512,1746125463847,-450.0,0.00036164,11]
[359564513,1746125463857,-450.0,0.00036164,11]
[359564514,1746125463866,-521.933654,0.00036164,11]
[359564515,1746125463876,-450.0,0.00036164,11]
[359564516,1746125463885,-450.0,0.00036164,11]
[359564517,1746125463895,-450.0,0.00036164,11]
[359564518,1746125463905,-199.6843948,0.00036164,11]
[359564519,1746125463914,-598.47878457,0.00036164,11]
[359564520,1746125463924,-450.0,0.00036164,11]
[359564521,1746125463934,-450.0,0.00036164,11]
[359564522,1746125463944,-450.0,0.00036164,11]
[359564523,1746125463954,-324.8056884,0.00036164,11]
[359564524,1746125463963,-900.85,0.00036164,11]
[359564525,1746125463973,-450.0,0.00036164,11]
[359564526,1746125463982,-362.88687703,0.00036164,11]
[359564527,1746125463992,-450.0,0.00036164,11]
[359564528,1746125464002,-450.0,0.00036164,11]